fUSD/lending_fUSD_20260424
["ID","MTS","AMOUNT","RATE_DAILY","PERIOD"]
[421076799,1776977432683,-401.27508644,8.22e-05,2]
[421076800,1776977432693,-500.42337708,8.22e-05,2]
[421076801,1776977432702,-500.0,8.24e-05,2]
[421076802,1776977432712,-500.0,8.24e-05,2]
[421076803,1776977432721,-500.0,8.24e-05,2]
[421076804,1776977432730,-500.0,8.24e-05,2]
[421076805,1776977432739,-500.55144924,8.24e-05,2]
[421076806,1776977432755,-500.97543413,8.24e-05,2]
[421076807,1776977432765,-500.0,8.24e-05,2]
[421076808,1776977432774,-4032.44526282,8.256e-05,2]
[421076809,1776977432783,-300.0,8.256e-05,2]
[421076810,1776977432792,-300.0,8.256e-05,2]
[421076811,1776977432801,-300.0,8.256e-05,2]
[421076812,1776977432811,-300.0,8.256e-05,2]
[421076813,1776977432820,-268.95980331,8.256e-05,2]
[421076814,1776977432830,-500.0,8.256e-05,2]
[421076815,1776977432839,-2500.0,8.256e-05,2]
[421076816,1776977432848,-2500.0,8.256e-05,2]
[421076817,1776977432857,-2500.0,8.256e-05,2]
[421076818,1776977432866,-2500.0,8.256e-05,2]
[421076819,1776977432876,-2500.0,8.256e-05,2]
[421076820,1776977432885,-250.0,8.256e-05,2]
[421076821,1776977432901,-255.0,8.256e-05,2]
[421076822,1776977432910,-420.0,8.256e-05,2]
[421076823,1776977432920,-1680.0,8.256e-05,2]
[421076824,1776977432929,-578.20924308,8.303e-05,2]
[421076825,1776977432938,-1428.38747117,8.303e-05,2]
[421076826,1776977432948,-721.12765535,8.303e-05,2]
[421076827,1776977432958,-500.0,8.303e-05,2]
[421076828,1776977432966,-200.0,8.303e-05,2]
[421076829,1776977432976,-151.0,8.303e-05,2]
[421076830,1776977432985,-174.61919141,8.303e-05,2]
[421076831,1776977432995,-160.14096925,8.31e-05,2]
[421076832,1776977433004,-500.0,8.358e-05,2]
[421076833,1776977433013,-500.0,8.413e-05,2]
[421076834,1776977433022,-591.35,8.428e-05,2]
[421076835,1776977433032,-168.9,8.45e-05,2]
[421076836,1776977433041,-168.9,8.45e-05,2]
[421076837,1776977433050,-168.9,8.45e-05,2]
[421076838,1776977433059,-168.9,8.45e-05,2]
[421076839,1776977433069,-168.9,8.45e-05,2]
[421076840,1776977433078,-168.9,8.45e-05,2]
[421076841,1776977433087,-500.0,8.468e-05,2]
[421076842,1776977433096,-151.0,8.477e-05,2]
[421076843,1776977433105,-243.40921455,8.493e-05,2]
[421076844,1776977433115,-500.0,8.523e-05,2]
[421076845,1776977433124,-169.4,8.523e-05,2]
[421076846,1776977433133,-500.0,8.578e-05,2]
[421076847,1776977433142,-500.0,8.633e-05,2]
[421076848,1776977433152,-500.0,8.688e-05,2]
[421076849,1776977433162,-591.38,8.702e-05,2]
[421076850,1776977433172,-597.65966537,8.723e-05,2]
[421076851,1776977433181,-500.0,8.743e-05,2]
[421076852,1776977433191,-1000.0,8.788e-05,2]
[421076853,1776977433200,-500.0,8.798e-05,2]
[421076854,1776977433210,-1481.23780761,8.851e-05,2]
[421076855,1776977433219,-156.587,8.851e-05,2]
[421076856,1776977433229,-181.08010149,8.851e-05,2]
[421076857,1776977433238,-500.0,8.853e-05,2]
[421076858,1776977433247,-23682.40603039,9.04e-05,2]
[421076859,1776977433257,-587.0,9.081e-05,2]
[421076860,1776977433266,-433.0,9.082e-05,2]
[421076861,1776977433275,-2351.0,9.082e-05,2]
[421076862,1776977433285,-151.44,9.135e-05,2]
[421076863,1776977433294,-250.0,9.252e-05,2]
[421076864,1776977433303,-162.380719,9.399e-05,2]
[421076865,1776977433313,-187.78006525,9.399e-05,2]
[421076866,1776977433322,-350.0,9.6e-05,2]
[421076867,1776977433332,-150.0,9.616e-05,2]
[421076868,1776977433342,-150.0,9.616e-05,2]
[421076869,1776977433351,-150.68563301,9.616e-05,2]
[421076870,1776977433361,-150.0,9.616e-05,2]
[421076871,1776977433370,-150.0,9.616e-05,2]
[421076872,1776977433380,-150.0,9.616e-05,2]
[421076873,1776977433390,-150.0,9.616e-05,2]
[421076874,1776977433399,-150.0,9.616e-05,2]
[421076875,1776977433408,-150.0,9.616e-05,2]
[421076876,1776977433418,-150.0,9.616e-05,2]
[421076877,1776977433427,-150.0,9.616e-05,2]
[421076878,1776977433437,-150.0,9.616e-05,2]
[421076879,1776977433445,-1532.0,9.643e-05,2]
[421076880,1776977433455,-623.0,9.695e-05,2]
[421076881,1776977433464,-1104.779,9.695e-05,2]
[421076882,1776977433474,-1349.0,9.695e-05,2]
[421076883,1776977433483,-1266.0,9.695e-05,2]
[421076884,1776977433491,-1221.966,9.695e-05,2]
[421076885,1776977433783,-927.0,9.695e-05,2]
[421076886,1776977433798,-3781.0,9.695e-05,2]
[421076887,1776977433807,-2474.0,9.695e-05,2]
[421076888,1776977433817,-150.0,9.699e-05,2]
[421076889,1776977433826,-150.0,9.781e-05,2]
[421076890,1776977433835,-350.0,9.781e-05,2]
[421076891,1776977433844,-150.0,9.863e-05,2]
[421076892,1776977433854,-250.0,9.863e-05,2]
[421076893,1776977433863,-195.61,9.871e-05,2]
[421076894,1776977433872,-150.0,9.884e-05,2]
[421076895,1776977433881,-150.0,9.884e-05,2]
[421076896,1776977433891,-150.0,9.884e-05,2]
[421076897,1776977433900,-301.0,9.945e-05,2]
[421076898,1776977433909,-150.0,9.945e-05,2]
[421076899,1776977433918,-168.3888056,9.947e-05,2]
[421076900,1776977433927,-194.72792766,9.947e-05,2]
[421076901,1776977433937,-150.0,9.973e-05,2]
[421076902,1776977433946,-150.0,9.973e-05,2]
[421076903,1776977433955,-150.0,9.973e-05,2]
[421076904,1776977433964,-342.0,9.989e-05,2]
[421076905,1776977433973,-736.0,9.99e-05,2]
[421076906,1776977433982,-3292.0,9.99e-05,2]
[421076907,1776977433991,-200.0,0.0001,2]
[421076908,1776977434001,-200.0,0.0001,2]
[421076909,1776977434010,-169.18494467,0.0001,2]
[421076910,1776977434019,-621.79484188,0.0001,2]
[421076911,1776977434028,-659.73136933,0.0001,2]
[421076912,1776977434037,-2000.0,0.0001,2]
[421076913,1776977434047,-2000.0,0.0001,2]
[421076914,1776977434055,-2000.0,0.0001,2]
[421076915,1776977434064,-1150.51380554,0.0001,2]
[421076916,1776977434077,-849.48619446,0.0001,2]
[421076917,1776977434086,-2000.0,0.0001,2]
[421076918,1776977434095,-2000.0,0.0001,2]
[421076919,1776977434104,-178.538836,0.0001,2]
[421076920,1776977434113,-178.538836,0.0001,2]
[421076921,1776977434122,-178.538836,0.0001,2]
[421076922,1776977434131,-178.538836,0.0001,2]
[421076923,1776977434140,-200.0,0.0001,2]
[421076924,1776977434152,-324.300379,0.0001,2]
[421076925,1776977434162,-151.0,0.0001,2]
[421076926,1776977434171,-151.0,0.0001,2]
[421076927,1776977434180,-151.0,0.0001,2]
[421076928,1776977434189,-324.300379,0.0001,2]
[421076929,1776977434198,-151.0,0.0001,2]
[421076930,1776977434207,-151.0,0.0001,2]
[421076931,1776977434216,-151.0,0.0001,2]
[421076932,1776977434225,-324.300379,0.0001,2]
[421076933,1776977434234,-151.0,0.0001,2]
[421076934,1776977434244,-151.0,0.0001,2]
[421076935,1776977434254,-151.0,0.0001,2]
[421076936,1776977434263,-500.0,0.0001,2]
[421076937,1776977434272,-324.300379,0.0001,2]
[421076938,1776977434281,-151.0,0.0001,2]
[421076939,1776977434291,-500.0,0.0001,2]
[421076940,1776977434300,-151.0,0.0001,2]
[421076941,1776977434308,-500.0,0.0001,2]
[421076942,1776977434318,-151.0,0.0001,2]
[421076943,1776977434327,-292.07510413,0.0001,2]
[421076944,1776977434337,-500.0,0.0001,2]
[421076945,1776977434346,-500.0,0.0001,2]
[421076946,1776977434355,-500.0,0.0001,2]
[421076947,1776977434364,-500.0,0.0001,2]
[421076948,1776977434374,-500.0,0.0001,2]
[421076949,1776977434383,-500.0,0.0001,2]
[421076950,1776977434392,-500.0,0.0001,2]
[421076951,1776977434402,-500.0,0.0001,2]
[421076952,1776977434411,-500.0,0.0001,2]
[421076953,1776977434420,-500.0,0.0001,2]
[421076954,1776977434429,-500.0,0.0001,2]
[421076955,1776977434438,-500.0,0.0001,2]
[421076956,1776977434447,-500.0,0.0001,2]
[421076957,1776977434456,-1386.78395259,0.0001,2]
[421076958,1776977434466,-13097.63222896,0.00010017,2]
[421076959,1776977434478,-16902.36777104,0.00010017,2]
[421076960,1776977434487,-150.0,0.00010027,2]
[421076961,1776977434496,-200.0,0.000101,2]
[421076962,1776977434505,-200.0,0.000101,2]
[421076963,1776977434515,-150.0,0.0001011,2]
[421076964,1776977434524,-150.0,0.00010151,2]
[421076965,1776977434534,-150.0,0.00010151,2]
[421076966,1776977434543,-150.0,0.00010151,2]
[421076967,1776977434552,-150.0,0.00010151,2]
[421076968,1776977434561,-350.0,0.00010162,2]
[421076969,1776977434569,-1359.129753,0.00010165,2]
[421076970,1776977434578,-248.373862,0.00010165,2]
[421076971,1776977434587,-151.0,0.00010165,2]
[421076972,1776977434596,-150.0,0.00010192,2]
[421076973,1776977434605,-200.0,0.00010201,2]
[421076974,1776977434615,-200.0,0.00010201,2]
[421076975,1776977434623,-151.0,0.00010217,2]
[421076976,1776977434632,-215.674785,0.00010217,2]
[421076977,1776977434641,-215.674785,0.00010217,2]
[421076978,1776977434651,-215.674785,0.00010217,2]
[421076979,1776977434660,-215.674785,0.00010217,2]
[421076980,1776977434669,-255.905183,0.00010266,2]
[421076981,1776977434678,-160.0,0.00010266,2]
[421076982,1776977434687,-571.223137,0.00010266,2]
[421076983,1776977434696,-982.446274,0.00010266,2]
[421076984,1776977434706,-198.520385,0.00010266,2]
[421076985,1776977434715,-160.0,0.00010266,2]
[421076986,1776977434724,-178.292473,0.00010266,2]
[421076987,1776977434735,-196.584947,0.00010266,2]
[421076988,1776977434744,-160.0,0.00010266,2]
[421076989,1776977434753,-511.069026,0.00010266,2]
[421076990,1776977434762,-862.138052,0.00010266,2]
[421076991,1776977434771,-171.809113,0.00010266,2]
[421076992,1776977434781,-204.027,0.00010272,2]
[421076993,1776977434791,-150.406,0.00010272,2]
[421076994,1776977434800,-150.0,0.00010272,2]
[421076995,1776977434810,-163.841,0.00010272,2]
[421076996,1776977434820,-166.437,0.00010272,2]
[421076997,1776977434829,-150.0,0.00010272,2]
[421076998,1776977434838,-150.0,0.00010272,2]
[421076999,1776977434848,-150.0,0.00010274,2]
[421077000,1776977434857,-200.0,0.00010303,2]
[421077001,1776977434867,-200.0,0.00010303,2]
[421077002,1776977434876,-150.0,0.00010329,2]
[421077003,1776977434886,-150.0,0.00010329,2]
[421077004,1776977434895,-150.0,0.00010329,2]
[421077005,1776977434905,-150.0,0.00010356,2]
[421077006,1776977434914,-433.0,0.00010383,2]
[421077007,1776977434925,-1900.0,0.000104,3]
[421077008,1776977434935,-200.0,0.00010406,2]
[421077009,1776977434944,-150.0,0.00010418,2]
[421077010,1776977434953,-150.0,0.00010418,2]
[421077011,1776977434963,-150.0,0.00010418,2]
[421077012,1776977434973,-150.0,0.00010438,2]
[421077013,1776977434982,-11611.84,0.00010468,2]
[421077014,1776977434991,-337.76757284,0.00010473,2]
[421077015,1776977435000,-500.0,0.00010473,2]
[421077016,1776977435010,-178.538836,0.00010475,2]
[421077017,1776977435018,-178.538836,0.00010475,2]
[421077018,1776977435027,-178.538836,0.00010475,2]
[421077019,1776977435037,-178.538836,0.00010475,2]
[421077020,1776977435046,-324.300379,0.00010475,2]
[421077021,1776977435055,-324.300379,0.00010475,2]
[421077022,1776977435064,-324.300379,0.00010475,2]
[421077023,1776977435073,-324.300379,0.00010475,2]
[421077024,1776977435082,-151.0,0.00010475,2]
[421077025,1776977435091,-299.99,0.00010475,2]
[421077026,1776977435100,-9999.99,0.00010475,2]
[421077027,1776977435110,-150.99,0.00010475,2]
[421077028,1776977435119,-4167.93,0.00010475,2]
[421077029,1776977435128,-2298.79440704,0.00010475,2]
[421077030,1776977435601,-1316.78280428,0.00010475,2]
[421077031,1776977435612,-6894.29289863,0.00010475,2]
[421077032,1776977435624,-1000.0,0.00010475,2]
[421077033,1776977435642,-13490.11989005,0.00010475,2]
[421077034,1776977435651,-5117.43,0.00010475,2]
[421077035,1776977435660,-105677.87,0.00010475,2]
[421077036,1776977435670,-6511.52,0.00010475,2]
[421077037,1776977435679,-999.99,0.00010475,2]
[421077038,1776977435688,-9999.99,0.00010475,2]
[421077039,1776977435702,-151.0,0.00010483,2]
[421077040,1776977435711,-3405.91463655,0.00010486,2]
[421077041,1776977435721,-250.07914443,0.00010495,2]
[421077042,1776977435731,-201.93286099,0.00010495,2]
[421077043,1776977435740,-3800.0,0.000105,3]
[421077044,1776977435749,-150.0,0.00010521,2]
[421077045,1776977435758,-200.0,0.00010548,2]
[421077046,1776977435767,-1438.09495884,0.00010548,2]
[421077047,1776977435776,-4884.74,0.00010574,2]
[421077048,1776977435786,-5000.0,0.00010597,2]
[421077049,1776977435796,-5800.0,0.000106,3]
[421077050,1776977435805,-3139.85641614,0.000106,2]
[421077051,1776977435814,-224.37266386,0.000106,2]
[421077052,1776977435823,-848.0023904,0.000106,2]
[421077053,1776977435832,-796.46179866,0.000106,2]
[421077054,1776977435841,-17465.15448546,0.000106,2]
[421077055,1776977435851,-150.0,0.00010603,2]
[421077056,1776977435860,-700.0,0.00010608,2]
[421077057,1776977435870,-412.49,0.00010647,2]
[421077058,1776977435879,-431.67,0.00010647,2]
[421077059,1776977435889,-218.73,0.00010647,2]
[421077060,1776977435899,-396.75,0.00010647,2]
[421077061,1776977435908,-254.63,0.00010647,2]
[421077062,1776977435919,-369.68,0.00010647,2]
[421077063,1776977435928,-357.45,0.00010647,2]
[421077064,1776977435938,-212.19,0.00010647,2]
[421077065,1776977435947,-223.52,0.00010647,2]
[421077066,1776977435956,-462.1,0.00010647,2]
[421077067,1776977435965,-209.17,0.00010647,2]
[421077068,1776977435974,-169.75,0.00010647,2]
[421077069,1776977435983,-183.9,0.00010647,2]
[421077070,1776977435992,-352.07,0.00010647,2]
[421077071,1776977436002,-162.69,0.00010647,2]
[421077072,1776977436011,-187.22,0.00010647,2]
[421077073,1776977436020,-185.36,0.00010647,2]
[421077074,1776977436030,-160.0,0.00010647,2]
[421077075,1776977436039,-169.68,0.00010647,2]
[421077076,1776977436048,-191.56,0.00010647,2]
[421077077,1776977436058,-167.64,0.00010647,2]
[421077078,1776977436067,-198.37,0.00010647,2]
[421077079,1776977436076,-178.71,0.00010647,2]
[421077080,1776977436085,-192.09,0.00010647,2]
[421077081,1776977436095,-193.07,0.00010647,2]
[421077082,1776977436104,-396.08,0.00010647,2]
[421077083,1776977436113,-336.62,0.00010647,2]
[421077084,1776977436122,-264.05,0.00010647,2]
[421077085,1776977436131,-237.64,0.00010647,2]
[421077086,1776977436140,-198.03,0.00010647,2]
[421077087,1776977436150,-391.22,0.00010647,2]
[421077088,1776977436160,-270.84,0.00010647,2]
[421077089,1776977436169,-225.7,0.00010647,2]
[421077090,1776977436179,-180.56,0.00010647,2]
[421077091,1776977436188,-350.0,0.00010659,2]
[421077092,1776977436197,-207.65692071,0.00010673,2]
[421077093,1776977436207,-241.44878081,0.00010685,2]
[421077094,1776977436216,-152.00189942,0.00010685,2]
[421077095,1776977436226,-150.0,0.00010685,2]
[421077096,1776977436235,-150.0,0.00010685,2]
[421077097,1776977436245,-150.0,0.00010685,2]
[421077098,1776977436256,-150.0,0.00010685,2]
[421077099,1776977436266,-150.0,0.00010685,2]
[421077100,1776977436277,-9321.0,0.00010685,2]
[421077101,1776977436288,-744.0,0.00010685,2]
[421077102,1776977436299,-3172.0,0.00010685,2]
[421077103,1776977436308,-294.86039999,0.00010685,2]
[421077104,1776977436318,-151.0,0.00010685,2]
[421077105,1776977436328,-482.28045993,0.0001069,2]
[421077106,1776977436337,-482.28045993,0.0001069,2]
[421077107,1776977436346,-151.0,0.00010697,2]
[421077108,1776977436355,-150.0,0.00010699,2]
[421077109,1776977436365,-157.0,0.000107,5]
[421077110,1776977436374,-250.0,0.000107,2]
[421077111,1776977436383,-963099.71183383,0.000107,2]
[421077119,1776977438823,-150.0,8.219e-05,2]
[421077120,1776977438833,-150.0,8.219e-05,2]
[421077121,1776977438843,-232.36403642,8.219e-05,2]
[421077122,1776977438852,-150.0,8.219e-05,2]
[421077123,1776977438862,-257.0,8.219e-05,2]
[421077124,1776977438871,-75226.16953412,0.000107,2]
[421077125,1776977438883,-48993.48432967,0.000107,2]
[421077126,1776977438894,-829.67010334,0.000107,2]
[421077129,1776977440713,-31304.95386235,0.000107,2]
[421077130,1776977440725,-12776.40077379,0.000107,2]
[421077152,1776977446463,-476.542,0.00010004,2]
[421077153,1776977446472,-5640.77490403,0.000107,2]
[421077154,1776977446515,-10433.12609809,0.000107,2]
[421077155,1776977446569,-3744.34733713,0.000107,2]
[421077156,1776977446580,-400.0,0.000107,2]
[421077157,1776977446592,-1000.0,0.000107,2]
[421077158,1776977446603,-9545.03377175,0.000107,2]
[421077159,1776977446623,-3713.08295613,0.000107,2]
[421077160,1776977446635,-458.66526517,0.000107,2]
[421077161,1776977446646,-1159.3,0.000107,2]
[421077162,1776977446750,-500.00163583,0.000107,2]
[421077163,1776977446840,-15597.4,0.000107,2]
[421077164,1776977446945,-1486.70156364,0.000107,2]
[421077165,1776977447000,-400.0,0.000107,2]
[421077166,1776977447055,-522.02000001,0.000107,2]
[421077178,1776977891568,839.086726,0.000128,30]
[421077198,1776978631772,-500.0,8.119e-05,2]
[421077199,1776978631782,-250.0,8.119e-05,2]
[421077200,1776978631792,-256.0,8.119e-05,2]
[421077201,1776978631803,-250.0,8.154e-05,2]
[421077202,1776978631813,-280.0,8.219e-05,2]
[421077203,1776978631822,-578.20924308,8.392e-05,2]
[421077204,1776978631832,-330.58746423,8.392e-05,2]
[421077205,1776978631842,-180.62097701,8.392e-05,2]
[421077206,1776978631854,-709.63970872,8.392e-05,2]
[421077207,1776978631863,-16.9092756,8.716e-05,2]
[421077254,1776978637725,-873.35141011,8.716e-05,2]
[421077255,1776978637735,-1200.0,8.9e-05,2]
[421077256,1776978637744,-150.0,8.901e-05,2]
[421077257,1776978637754,-150.0,8.901e-05,2]
[421077258,1776978637764,-217.63130726,8.901e-05,2]
[421077259,1776978637777,-150.0,8.901e-05,2]
[421077260,1776978637786,-150.0,8.901e-05,2]
[421077261,1776978637796,-300.0,8.929e-05,2]
[421077262,1776978637805,-241.0,8.929e-05,2]
[421077263,1776978637815,-150.0,8.93e-05,2]
[421077264,1776978637824,-2500.0,8.931e-05,2]
[421077265,1776978637834,-2500.0,8.931e-05,2]
[421077266,1776978637843,-2500.0,8.931e-05,2]
[421077267,1776978637852,-2500.0,8.931e-05,2]
[421077268,1776978637862,-250.0,8.931e-05,2]
[421077269,1776978637871,-2500.0,8.931e-05,2]
[421077270,1776978637880,-2232.80997893,8.931e-05,2]
[421077271,1776978637890,-174.61919141,9.035e-05,2]
[421077272,1776978637899,-7186.21,9.04e-05,2]
[421077273,1776978637909,-9999.99,9.04e-05,2]
[421077274,1776978637919,-39485.88,9.04e-05,2]
[421077275,1776978637928,-9999.99,9.04e-05,2]
[421077276,1776978637939,-890.26068571,9.04e-05,2]
[421077277,1776978637949,-2516.9231,9.53e-05,2]
[421077278,1776978637959,-307.46111371,9.583e-05,2]
[421077279,1776978637968,-1600.0,9.7e-05,3]
[421077280,1776978637979,-1680.0,9.79e-05,2]
[421077281,1776978637989,-3200.0,9.8e-05,3]
[421077282,1776978638004,-5000.0,9.804e-05,2]
[421077283,1776978638014,-2500.0,9.804e-05,2]
[421077284,1776978638024,-420.0,9.822e-05,2]
[421077285,1776978638033,-255.0,9.823e-05,2]
[421077286,1776978638043,-160.23959474,9.883e-05,2]
[421077287,1776978638052,-500.0,9.883e-05,2]
[421077288,1776978638062,-500.0,9.883e-05,2]
[421077289,1776978638071,-255.04347443,9.89e-05,2]
[421077290,1776978638082,-721.12765535,9.898e-05,2]
[421077291,1776978638092,-1428.38747117,9.898e-05,2]
[421077292,1776978638101,-4900.0,9.9e-05,3]
[421077293,1776978638111,-500.0,9.902e-05,2]
[421077294,1776978638120,-348.4334017,9.902e-05,2]
[421077295,1776978638129,-474.06531934,9.902e-05,2]
[421077296,1776978638139,-500.0,9.902e-05,2]
[421077297,1776978638148,-500.0,9.902e-05,2]
[421077298,1776978638158,-500.0,9.902e-05,2]
[421077299,1776978638167,-500.0,9.902e-05,2]
[421077300,1776978638177,-500.0,9.902e-05,2]
[421077301,1776978638187,-500.0,9.902e-05,2]
[421077302,1776978638196,-500.0,9.902e-05,2]
[421077303,1776978638206,-620.77632518,9.902e-05,2]
[421077304,1776978638216,-500.0,9.902e-05,2]
[421077305,1776978638226,-500.0,9.902e-05,2]
[421077306,1776978638236,-500.0,9.902e-05,2]
[421077307,1776978638246,-500.0,9.902e-05,2]
[421077349,1776978638672,-281.32607598,9.902e-05,2]
[421077351,1776978638682,-500.0,9.902e-05,2]
[421077353,1776978638692,-500.0,9.902e-05,2]
[421077355,1776978638701,-500.0,9.902e-05,2]
[421077357,1776978638710,-500.0,9.902e-05,2]
[421077360,1776978638730,-500.0,9.902e-05,2]
[421077363,1776978638741,-500.0,9.902e-05,2]
[421077365,1776978638750,-500.0,9.902e-05,2]
[421077367,1776978638759,-500.0,9.902e-05,2]
[421077369,1776978638770,-156.6964102,9.902e-05,2]
[421077371,1776978638780,-500.0,9.902e-05,2]
[421077373,1776978638790,-500.0,9.902e-05,2]
[421077375,1776978638800,-500.0,9.902e-05,2]
[421077376,1776978638810,-500.0,9.902e-05,2]
[421077377,1776978638822,-500.0,9.902e-05,2]
[421077378,1776978638833,-500.0,9.902e-05,2]
[421077379,1776978638843,-500.0,9.902e-05,2]
[421077380,1776978638853,-500.0,9.902e-05,2]
[421077381,1776978638863,-500.0,9.902e-05,2]
[421077382,1776978638875,-500.0,9.902e-05,2]
[421077383,1776978638885,-500.0,9.902e-05,2]
[421077384,1776978638896,-500.0,9.902e-05,2]
[421077385,1776978638906,-500.0,9.902e-05,2]
[421077386,1776978638915,-500.0,9.902e-05,2]
[421077387,1776978638925,-500.0,9.902e-05,2]
[421077388,1776978638935,-500.0,9.902e-05,2]
[421077389,1776978638946,-500.0,9.902e-05,2]
[421077390,1776978638957,-500.0,9.902e-05,2]
[421077391,1776978638966,-500.0,9.902e-05,2]
[421077392,1776978638977,-500.0,9.902e-05,2]
[421077393,1776978638986,-500.0,9.902e-05,2]
[421077394,1776978638997,-500.0,9.902e-05,2]
[421077395,1776978639006,-500.0,9.902e-05,2]
[421077396,1776978639016,-218.65874801,9.902e-05,2]
[421077397,1776978639026,-500.0,9.902e-05,2]
[421077398,1776978639036,-500.0,9.902e-05,2]
[421077399,1776978639046,-500.0,9.902e-05,2]
[421077400,1776978639056,-500.0,9.902e-05,2]
[421077401,1776978639066,-500.0,9.902e-05,2]
[421077402,1776978639075,-500.0,9.902e-05,2]
[421077403,1776978639085,-200.0,9.902e-05,2]
[421077404,1776978639095,-570.60727274,9.903e-05,2]
[421077405,1776978639105,-500.0,9.903e-05,2]
[421077406,1776978639115,-500.0,9.903e-05,2]
[421077407,1776978639125,-500.0,9.903e-05,2]
[421077408,1776978639135,-500.0,9.903e-05,2]
[421077409,1776978639144,-500.0,9.903e-05,2]
[421077410,1776978639155,-261.37161125,9.903e-05,2]
[421077411,1776978639164,-500.0,9.903e-05,2]
[421077412,1776978639174,-500.0,9.903e-05,2]
[421077413,1776978639184,-500.0,9.903e-05,2]
[421077414,1776978639193,-500.0,9.903e-05,2]
[421077415,1776978639203,-432.50844829,9.903e-05,2]
[421077416,1776978639214,-500.0,9.903e-05,2]
[421077417,1776978639223,-500.0,9.903e-05,2]
[421077418,1776978639232,-500.0,9.903e-05,2]
[421077419,1776978639242,-500.0,9.903e-05,2]
[421077420,1776978639252,-500.0,9.903e-05,2]
[421077421,1776978639261,-500.0,9.903e-05,2]
[421077422,1776978639271,-500.0,9.903e-05,2]
[421077423,1776978639281,-500.0,9.903e-05,2]
[421077424,1776978639292,-500.0,9.903e-05,2]
[421077425,1776978639304,-429.34090417,9.903e-05,2]
[421077426,1776978639313,-396.3612009,9.903e-05,2]
[421077427,1776978639323,-3931.367,9.903e-05,2]
[421077428,1776978639335,-328.638,9.903e-05,2]
[421077429,1776978639344,-150.0,9.903e-05,2]
[421077430,1776978639354,-250.0,9.904e-05,2]
[421077431,1776978639365,-151.0,9.904e-05,5]
[421077432,1776978639375,-157.0,9.904e-05,5]
[421077433,1776978639384,-173170.25511619,9.904e-05,2]
[421077434,1776978639428,-90316.24298002,9.904e-05,2]
[421077435,1776978639440,-257.14460464,9.904e-05,2]
[421077436,1776978639471,-397.19400053,9.904e-05,2]
[421077437,1776978639482,-6730.3,9.904e-05,2]
[421077438,1776978639493,-1695.30567479,9.904e-05,2]
[421077439,1776978639505,-75226.16953412,9.904e-05,2]
[421077440,1776978639521,-572.87572133,9.904e-05,2]
[421077441,1776978639534,-1141.47131779,9.904e-05,2]
[421077442,1776978639548,-1583.53603552,9.904e-05,2]
[421077443,1776978639559,-296.53689903,9.904e-05,2]
[421077445,1776978640152,-1139.40348521,9.904e-05,2]
[421077446,1776978640466,-7615.0,9.904e-05,2]
[421077447,1776978640480,-18700.0,9.904e-05,2]
[421077448,1776978640492,-654.4863709,9.904e-05,2]
[421077477,1776978645774,-6345.07328408,9.904e-05,2]
[421077479,1776978646779,-10145.03424842,9.904e-05,2]
[421077480,1776978646792,-5110.37493883,9.904e-05,2]
[421077481,1776978646805,-5460.00000146,9.904e-05,2]
[421077482,1776978646819,-1685.999998,9.904e-05,2]
[421077487,1776979626912,1100.0,8.9e-05,3]
[421077490,1776979629038,2300.0,9e-05,3]
[421077507,1776979831789,-257.0,8.219e-05,2]
[421077508,1776979831799,-250.0,8.219e-05,2]
[421077509,1776979831808,-280.0,8.219e-05,2]
[421077510,1776979831818,-1200.0,8.244e-05,2]
[421077511,1776979831827,-2500.0,8.245e-05,2]